bitfinex-derivatives/quotes_BTCF0:USTF0_20210705
["timestamp","ask_amount","ask_price","bid_price","bid_amount"]
[1625444360737,0.4901979,34901.0,34888.0,1.03946632]
[1625444360832,0.5491979,34901.0,34888.0,1.03946632]
[1625444360932,0.5491979,34901.0,34888.0,1.07096632]
[1625444361032,0.6081979,34901.0,34888.0,1.07096632]
[1625444361135,0.118,34901.0,34888.0,1.07096632]
[1625444361384,0.118,34901.0,34888.0,1.00396632]
[1625444361484,0.48952664,34900.0,34888.0,1.06296632]
[1625444361583,0.54852664,34900.0,34888.0,1.06296632]
[1625444361685,0.60752664,34900.0,34888.0,1.06296632]
[1625444361785,0.16327015,34897.0,34888.0,1.06296632]
[1625444361883,0.28127015,34897.0,34888.0,1.06296632]
[1625444361984,0.22227015,34897.0,34888.0,1.06296632]
[1625444362186,0.059,34897.0,34896.0,0.48115088]
[1625444362284,0.059,34897.0,34896.0,0.76028088]
[1625444362585,0.24057544,34899.0,34896.0,0.42062446]
[1625444362686,0.24057544,34899.0,34896.0,0.47962446]
[1625444362786,0.49016728,34901.0,34896.0,0.47962446]
[1625444362987,0.49016728,34901.0,34896.0,0.53862446]
[1625444363188,0.1636882,34906.0,34896.0,0.53862446]
[1625444363485,0.1636882,34906.0,34896.0,0.47962446]
[1625444363586,0.059,34906.0,34896.0,0.53862446]
[1625444363686,0.49093128,34907.0,34896.0,0.53862446]
[1625444363888,0.49093128,34907.0,34896.0,0.57012446]
[1625444364089,0.16371841,34907.0,34896.0,0.51112446]
[1625444364189,0.16371841,34907.0,34906.0,0.48115088]
[1625444365192,0.49181648,34908.0,34906.0,0.48115088]
[1625444365644,0.49181648,34908.0,34906.0,0.54015088]
[1625444365744,0.49181648,34908.0,34906.0,0.59915088]
[1625444366198,0.49181648,34908.0,34907.0,0.24057544]
[1625444366297,0.49258949,34914.0,34907.0,0.35857544]
[1625444366449,0.49258949,34914.0,34907.0,0.29957544]
[1625444366846,0.49258949,34914.0,34907.0,0.35857544]
[1625444366948,0.73291795,34913.0,34907.0,0.35857544]
[1625444367449,0.24057544,34913.0,34907.0,0.35857544]
[1625444368249,0.24057544,34913.0,34912.0,0.50876544]
[1625444368352,0.24057544,34913.0,34912.0,0.56776544]
[1625444368450,0.24057544,34913.0,34912.0,0.50876544]
[1625444369304,0.73116819,34913.0,34912.0,0.50876544]
[1625444369401,0.73116819,34913.0,34912.0,0.24057544]
[1625444369915,1.38178772,34913.0,34912.0,0.24057544]
[1625444370003,1.38178772,34913.0,34912.0,0.29957544]
[1625444370202,1.38178772,34913.0,34912.0,0.24057544]
[1625444370407,1.38178772,34913.0,34912.0,0.29957544]
[1625444370504,0.73025841,34913.0,34912.0,0.29957544]
[1625444370603,0.40385747,34913.0,34908.0,0.26389]
[1625444370906,0.40385747,34913.0,34908.0,0.32289]
[1625444371206,0.24057544,34913.0,34908.0,0.32289]
[1625444372207,0.24057544,34913.0,34912.0,0.24057544]
[1625444376517,0.24057544,34913.0,34912.0,0.29957544]
[1625444376719,0.24057544,34913.0,34912.0,0.24057544]
[1625444377472,0.29957544,34913.0,34912.0,0.24057544]
[1625444377572,0.4632046,34913.0,34912.0,0.24057544]
[1625444377875,0.4042046,34913.0,34912.0,0.24057544]
[1625444377978,1.38484142,34913.0,34912.0,0.24057544]
[1625444378626,0.73099849,34913.0,34912.0,0.24057544]
[1625444380181,2.3651509,34913.0,34912.0,0.24057544]
[1625444380280,2.4241509,34913.0,34912.0,0.24057544]
[1625444380631,2.4831509,34913.0,34912.0,0.24057544]
[1625444381033,2.4241509,34913.0,34912.0,0.24057544]
[1625444381235,2.3651509,34913.0,34912.0,0.24057544]
[1625444382292,2.4241509,34913.0,34912.0,0.24057544]
[1625444382488,2.4831509,34913.0,34912.0,0.24057544]
[1625444382788,3.56775414,34913.0,34912.0,0.24057544]
[1625444382886,3.62675414,34913.0,34909.0,0.005]
[1625444383085,3.56775414,34913.0,34909.0,0.005]
[1625444383487,3.56775414,34913.0,34906.0,0.24057544]
[1625444383588,3.62675414,34913.0,34906.0,0.24057544]
[1625444383840,1.14351198,34907.0,34906.0,0.24057544]
[1625444383937,1.48473198,34907.0,34906.0,0.24057544]
[1625444384238,2.2064583,34907.0,34898.0,0.24057544]
[1625444384399,4.32872345,34907.0,34898.0,0.24057544]
[1625444384591,4.32872345,34907.0,34895.0,0.24057544]
[1625444384692,4.32872345,34907.0,34891.0,0.24057544]
[1625444384791,3.32276458,34904.0,34891.0,0.24057544]
[1625444384990,3.38176458,34904.0,34891.0,0.24057544]
[1625444385240,3.38176458,34904.0,34902.0,0.01]
[1625444385391,1.14230872,34903.0,34902.0,0.01]
[1625444385491,1.20130872,34903.0,34902.0,0.01]
[1625444385590,1.26030872,34903.0,34902.0,0.01]
[1625444385892,3.37992369,34903.0,34902.0,0.01]
[1625444386243,3.62049913,34903.0,34902.0,0.01]
[1625444386843,0.049,34902.0,34885.0,0.057]
[1625444386944,0.049,34902.0,34879.0,0.057]
[1625444387046,0.108,34902.0,34879.0,0.057]
[1625444387147,0.608,34902.0,34871.0,0.50206253]
[1625444387346,0.01287919,34901.0,34871.0,0.31506253]
[1625444387444,0.13087919,34901.0,34871.0,0.31506253]
[1625444387596,0.86734,34900.0,34871.0,0.31506253]
[1625444387698,3.2604759,34891.0,34867.0,0.9735]
[1625444387795,3.3194759,34891.0,34872.0,0.00510099]
[1625444387896,3.5923059,34891.0,34872.0,0.00510099]
[1625444388097,4.0923059,34891.0,34868.0,0.00510139]
[1625444388195,4.6775,34881.0,34868.0,0.00510139]
[1625444388297,0.24057544,34877.0,34876.0,0.24057544]
[1625444388396,0.29957544,34877.0,34876.0,0.24057544]
[1625444388595,0.35857544,34877.0,34876.0,0.24057544]
[1625444389347,0.29957544,34877.0,34876.0,0.24057544]
[1625444390998,0.059,34877.0,34876.0,0.24057544]
[1625444391501,0.059,34877.0,34876.0,0.29957544]
[1625444391899,0.0001,34877.0,34876.0,0.29957544]
[1625444392000,0.24057544,34880.0,34876.0,0.29957544]
[1625444392100,0.24057544,34880.0,34876.0,0.59138544]
[1625444392299,0.24057544,34880.0,34879.0,0.24057544]
[1625444392400,0.24057544,34880.0,34879.0,0.29957544]
[1625444392502,0.24057544,34880.0,34879.0,0.24057544]
[1625444392604,0.24057544,34880.0,34879.0,0.29957544]
[1625444393301,0.24057544,34884.0,34879.0,0.29957544]
[1625444393504,0.24057544,34884.0,34879.0,0.35857544]
[1625444393900,0.24057544,34884.0,34879.0,0.29957544]
[1625444394350,0.24057544,34880.0,34879.0,0.29957544]
[1625444394951,0.24057544,34880.0,34879.0,0.35857544]
[1625444395351,0.24057544,34880.0,34879.0,0.29957544]
[1625444395454,0.24057544,34884.0,34879.0,0.29957544]
[1625444395567,0.24057544,34884.0,34879.0,0.57413544]
[1625444395754,0.24057544,34884.0,34879.0,0.60563544]
[1625444396305,0.24057544,34884.0,34883.0,0.24057544]
[1625444396405,0.24057544,34884.0,34883.0,0.29957544]
[1625444397257,0.24057544,34884.0,34883.0,0.33107544]
[1625444401713,0.24057544,34884.0,34883.0,0.39007544]
[1625444401825,0.24057544,34884.0,34883.0,0.64845544]
[1625444402032,0.008,34889.0,34883.0,0.64845544]
[1625444402329,0.008,34889.0,34888.0,0.48115088]
[1625444402427,0.008,34889.0,34888.0,0.54015088]
[1625444402530,0.008,34889.0,34888.0,0.59915088]
[1625444402780,5.718e-05,34892.0,34888.0,0.59915088]
[1625444402980,0.49714198,34896.0,34888.0,0.63065088]
[1625444403481,0.24057544,34897.0,34888.0,0.63065088]
[1625444404331,0.24057544,34897.0,34896.0,0.24057544]
[1625444404433,0.24057544,34897.0,34896.0,0.64654544]
[1625444405535,0.24057544,34900.0,34896.0,0.67804544]
[1625444406388,0.90411109,34904.0,34899.0,0.24057544]
[1625444406487,0.90411109,34904.0,34899.0,0.29957544]
[1625444407187,0.90411109,34904.0,34899.0,0.33107544]
[1625444407590,0.24057544,34904.0,34899.0,0.33107544]
[1625444408140,0.9036213,34904.0,34899.0,0.39007544]
[1625444408390,0.66304586,34904.0,34903.0,0.48115088]
[1625444408489,0.66304586,34904.0,34903.0,0.85095088]
[1625444408791,0.66365404,34908.0,34903.0,0.85095088]
[1625444408893,0.66365404,34908.0,34903.0,0.79195088]
[1625444409142,0.66365404,34908.0,34903.0,0.85095088]
[1625444409242,0.66365404,34908.0,34903.0,0.79195088]
[1625444409445,0.66336142,34907.0,34903.0,0.79195088]
[1625444410248,0.66336142,34907.0,34903.0,0.85095088]
[1625444410697,0.66336142,34907.0,34903.0,0.88245088]
[1625444411149,0.66222387,34910.0,34903.0,0.82345088]
[1625444411248,0.66222387,34910.0,34903.0,0.57165088]
[1625444411349,0.66222387,34910.0,34903.0,0.63065088]
[1625444411650,0.66113101,34907.0,34903.0,0.63065088]
[1625444412401,0.66113101,34907.0,34906.0,0.24057544]
[1625444412504,0.66113101,34907.0,34906.0,0.29957544]
[1625444412801,0.66113101,34907.0,34906.0,0.35857544]
[1625444413269,0.66113101,34907.0,34906.0,0.29957544]
[1625444413354,0.66044851,34908.0,34906.0,0.29957544]
[1625444414204,0.66044851,34908.0,34906.0,0.35857544]
[1625444414308,0.9904466,34909.0,34906.0,0.35857544]
[1625444414309,0.6607899,34909.0,34906.0,0.35857544]
[1625444414403,0.6607899,34909.0,34908.0,0.24057544]
[1625444414503,0.6607899,34909.0,34908.0,0.29957544]
[1625444415105,1.65107585,34909.0,34908.0,0.29957544]
[1625444416106,1.65107585,34909.0,34908.0,0.35857544]
[1625444416457,0.6607899,34909.0,34908.0,0.35857544]
[1625444417208,0.6607899,34909.0,34908.0,0.29957544]
[1625444417407,0.7197899,34909.0,34908.0,0.29957544]
[1625444417810,0.6607899,34909.0,34908.0,0.29957544]
[1625444417911,1.64743014,34909.0,34908.0,0.29957544]
[1625444418209,1.64743014,34909.0,34908.0,0.35857544]
[1625444418560,0.6607899,34909.0,34908.0,0.35857544]
[1625444418959,0.6607899,34909.0,34908.0,0.29957544]
[1625444420113,1.64696734,34909.0,34908.0,0.29957544]
[1625444420963,1.64696734,34909.0,34908.0,0.24057544]
[1625444421164,1.64696734,34909.0,34908.0,0.29957544]
[1625444421416,1.64696734,34909.0,34908.0,0.24057544]
[1625444421866,1.85750734,34909.0,34908.0,0.24057544]
[1625444422173,1.91650734,34909.0,34908.0,0.24057544]
[1625444422272,4.38964951,34909.0,34908.0,0.24057544]
[1625444422469,4.38964951,34909.0,34908.0,0.29957544]
[1625444422671,3.01165134,34909.0,34908.0,0.29957544]
[1625444422970,3.01165134,34909.0,34908.0,0.24057544]
[1625444424173,4.32991499,34909.0,34908.0,0.24057544]
[1625444424372,4.38891499,34909.0,34908.0,0.24057544]
[1625444424475,4.62949043,34909.0,34908.0,0.24057544]
[1625444424982,4.68849043,34909.0,34908.0,0.24057544]
[1625444426279,4.62949043,34909.0,34908.0,0.24057544]
[1625444427433,4.68849043,34909.0,34908.0,0.24057544]
[1625444427530,4.62949043,34909.0,34908.0,0.24057544]
[1625444428183,4.57049043,34909.0,34908.0,0.24057544]
[1625444428285,4.62949043,34909.0,34908.0,0.24057544]
[1625444428485,4.68849043,34909.0,34908.0,0.24057544]
[1625444428936,6.16687875,34909.0,34908.0,0.24057544]
[1625444429335,6.17988065,34909.0,34908.0,0.24057544]
[1625444429437,6.17988065,34909.0,34903.0,0.24057544]
[1625444429534,6.17988065,34909.0,34898.0,0.01]
[1625444429939,1.14905308,34900.0,34899.0,0.00504304]
[1625444430035,1.46346308,34900.0,34899.0,0.00504304]
[1625444430236,1.40446308,34900.0,34899.0,0.00504304]
[1625444430540,1.94461396,34900.0,34899.0,0.00504304]
[1625444430635,1.88561396,34900.0,34899.0,0.00504304]
[1625444430735,3.52727689,34900.0,34899.0,0.00504304]
[1625444431086,3.58627689,34900.0,34899.0,0.00504304]
[1625444431235,3.64527689,34900.0,34899.0,0.00504304]
[1625444431736,3.58627689,34900.0,34899.0,0.00504304]
[1625444432490,3.52727689,34900.0,34899.0,0.00504304]
[1625444435594,2.37822381,34900.0,34899.0,0.00504304]
[1625444436598,2.37822381,34900.0,34897.0,0.00504265]
[1625444436698,2.37822381,34900.0,34897.0,0.06404265]
[1625444436797,3.52807006,34900.0,34897.0,0.06404265]
[1625444437146,0.98454571,34899.0,34898.0,0.00504275]
[1625444437498,1.6404112,34899.0,34898.0,0.00504275]
[1625444437650,1.6404112,34899.0,34897.0,0.00504267]
[1625444438303,0.98279034,34898.0,34897.0,0.00504267]
[1625444438401,1.63803849,34898.0,34897.0,0.00504267]
[1625444439852,1.63803849,34898.0,34894.0,0.24057544]
[1625444440101,1.63803849,34898.0,34897.0,0.00504682]
[1625444444912,1.14625957,34899.0,34897.0,0.00504682]
[1625444445012,0.65451052,34898.0,34897.0,0.00504682]
[1625444445416,1.63629359,34898.0,34897.0,0.00504682]
[1625444448267,2.78151689,34898.0,34897.0,0.00504682]
[1625444450018,1.63629359,34898.0,34897.0,0.00504682]
[1625444451219,2.78457895,34898.0,34897.0,0.00504682]
[1625444452172,2.13006843,34898.0,34897.0,0.00504682]
[1625444452322,2.78647262,34898.0,34897.0,0.00504682]
[1625444453529,2.78647262,34898.0,34897.0,0.06404682]
[1625444454826,4.10050761,34898.0,34897.0,0.06404682]
[1625444455132,4.10050761,34898.0,34897.0,0.00504682]
[1625444455475,4.15950761,34898.0,34897.0,0.00504682]
[1625444456586,4.10050761,34898.0,34897.0,0.00504682]
[1625444456684,4.34108305,34898.0,34897.0,0.00504682]
[1625444457035,5.81765984,34898.0,34897.0,0.00504682]
[1625444457235,5.88965477,34898.0,34897.0,0.00504682]
[1625444457535,5.83065477,34898.0,34897.0,0.00504682]
[1625444458337,5.88965477,34898.0,34897.0,0.00504682]
[1625444459387,5.83065477,34898.0,34897.0,0.00504682]
[1625444459786,5.88965477,34898.0,34897.0,0.00504682]
[1625444459886,5.83065477,34898.0,34897.0,0.00504682]
[1625444460287,5.88965477,34898.0,34897.0,0.00504682]
[1625444460387,5.87665984,34898.0,34897.0,0.00504682]
[1625444460489,5.81765984,34898.0,34897.0,0.00504682]
[1625444460590,5.87665984,34898.0,34897.0,0.00504682]
[1625444461591,5.81765984,34898.0,34897.0,0.00504682]
[1625444461691,5.87665984,34898.0,34897.0,0.00504682]
[1625444461893,5.81765984,34898.0,34897.0,0.00504682]
[1625444462096,5.81765984,34898.0,34897.0,0.06404682]
[1625444462596,4.34108305,34898.0,34897.0,0.06404682]
[1625444462696,4.34108305,34898.0,34897.0,0.30462226]
[1625444464398,4.34108305,34898.0,34897.0,0.55960226]
[1625444465549,4.10050761,34898.0,34897.0,0.55960226]
[1625444465651,4.10050761,34898.0,34897.0,0.61860226]
[1625444465851,4.10050761,34898.0,34897.0,0.65010226]
[1625444466608,0.66015955,34899.0,34897.0,3.52357316]
[1625444466704,0.66015955,34899.0,34898.0,0.24057544]
[1625444466804,0.66015955,34899.0,34898.0,0.35857544]
[1625444467003,0.66015955,34899.0,34898.0,0.36361991]
[1625444467207,0.66056064,34902.0,34898.0,3.23696261]
[1625444467305,0.66056064,34902.0,34898.0,3.26846261]
[1625444467506,0.66056064,34902.0,34899.0,0.00504461]
[1625444467608,0.66056064,34902.0,34899.0,0.06404461]
[1625444467705,0.99090995,34902.0,34901.0,0.67609294]
[1625444467809,0.99090995,34902.0,34901.0,0.79409294]
[1625444468006,0.99090995,34902.0,34901.0,0.79913745]
[1625444468409,1.65137627,34902.0,34901.0,0.12304451]
[1625444468612,1.65137627,34902.0,34901.0,0.15454451]
[1625444468713,1.65137627,34902.0,34901.0,0.39511995]
[1625444468812,1.65137627,34902.0,34901.0,0.33611995]
[1625444468912,1.65137627,34902.0,34901.0,1.01218126]
[1625444469313,2.80679584,34902.0,34901.0,0.33611995]
[1625444471278,2.80679584,34902.0,34901.0,0.39511995]
[1625444471368,2.80679584,34902.0,34901.0,0.33611995]
[1625444471468,2.80679584,34902.0,34901.0,0.39511995]
[1625444474325,2.80679584,34902.0,34901.0,1.0714333]
[1625444475228,2.80679584,34902.0,34901.0,1.0124333]
[1625444475880,2.80679584,34902.0,34901.0,1.0714333]
[1625444477981,1.65137627,34902.0,34901.0,1.0714333]
[1625444478431,1.65137627,34902.0,34901.0,2.08621583]
[1625444478782,2.80821547,34902.0,34901.0,1.0714333]
[1625444480888,1.65137627,34902.0,34901.0,2.08659997]
[1625444482641,0.99090995,34902.0,34901.0,2.08659997]
[1625444482741,1.22775995,34902.0,34901.0,1.96859997]
[1625444482843,2.37084666,34902.0,34901.0,1.69652453]
[1625444483044,2.42984666,34902.0,34901.0,1.69148002]
[1625444483344,6.39424511,34902.0,34900.0,1.18436112]
[1625444483444,6.39424511,34902.0,34898.0,0.24057544]
[1625444483893,2.20462965,34902.0,34899.0,0.005044]
[1625444483994,2.20462965,34902.0,34899.0,0.064044]
[1625444484296,2.20462965,34902.0,34899.0,0.154544]
[1625444484399,4.13093979,34900.0,34899.0,0.154544]
[1625444484496,4.13093979,34900.0,34899.0,0.1495]
[1625444484696,4.13093979,34900.0,34899.0,0.15454385]
[1625444484896,4.13093979,34900.0,34899.0,0.15954385]
[1625444484998,2.80908532,34900.0,34899.0,0.83640057]
[1625444485399,2.80908532,34900.0,34899.0,0.83140057]
[1625444485496,1.652442,34900.0,34899.0,1.84665862]
[1625444485897,2.80967953,34900.0,34899.0,1.84665862]
[1625444489156,1.652442,34900.0,34899.0,1.84665862]
[1625444489657,1.652442,34900.0,34899.0,3.03100542]
[1625444489759,1.652442,34900.0,34899.0,3.46230942]
[1625444490458,0.66100984,34900.0,34899.0,3.46230942]
[1625444491209,1.3986103,34902.0,34899.0,0.58584785]
[1625444491310,0.24057544,34902.0,34899.0,0.58584785]
[1625444491663,0.56005653,34900.0,34899.0,1.77010892]
[1625444491762,0.56005653,34900.0,34899.0,1.33376107]
[1625444491963,0.56005653,34900.0,34899.0,1.33880444]
[1625444492415,1.55272112,34900.0,34899.0,1.16959631]
[1625444492965,2.04910501,34900.0,34899.0,2.86134058]
[1625444493417,1.05644042,34900.0,34899.0,2.86134058]
[1625444493919,2.04899938,34900.0,34899.0,2.86134058]
[1625444494422,2.04899938,34900.0,34899.0,1.67711959]
[1625444494921,2.04899938,34900.0,34899.0,1.91769503]
[1625444497528,2.04899938,34900.0,34899.0,3.10178389]
[1625444498180,2.04899938,34900.0,34899.0,1.91769503]
[1625444498729,2.04899938,34900.0,34899.0,3.10176981]
[1625444498932,0.49638389,34900.0,34899.0,3.10176981]
[1625444499131,1.65409327,34900.0,34899.0,0.90264209]
[1625444499430,2.64633599,34900.0,34899.0,0.90264209]
[1625444499733,2.64633599,34900.0,34899.0,0.72256011]
[1625444503346,2.64633599,34900.0,34899.0,0.78156011]
[1625444504499,2.64633599,34900.0,34899.0,0.72256011]
[1625444504601,2.86447599,34900.0,34899.0,0.72256011]
[1625444505050,2.86447599,34900.0,34899.0,0.78156011]
[1625444505554,4.19066631,34900.0,34899.0,0.78156011]
[1625444506305,4.19066631,34900.0,34899.0,0.29957544]
[1625444506806,4.19066631,34900.0,34899.0,0.30461615]
[1625444507507,4.19066631,34900.0,34899.0,0.6430379]
[1625444512820,4.19066631,34900.0,34899.0,0.30461615]
[1625444513223,4.19066631,34900.0,34899.0,0.64312183]
[1625444515526,4.19066631,34900.0,34899.0,0.30461615]
[1625444516276,4.19066631,34900.0,34899.0,0.33611615]
[1625444517177,4.19066631,34900.0,34899.0,0.27711615]
[1625444518030,4.19066631,34900.0,34899.0,0.33611615]
[1625444520338,4.19066631,34900.0,34899.0,1.35254009]
[1625444521488,4.19066631,34900.0,34899.0,2.53881893]
[1625444521939,4.19066631,34900.0,34899.0,1.35254009]
[1625444522841,4.19066631,34900.0,34899.0,2.5388212]
[1625444524400,4.19066631,34900.0,34899.0,2.7418212]
[1625444527004,4.19066631,34900.0,34899.0,4.09795962]
[1625444527458,4.19066631,34900.0,34899.0,2.7418212]
[1625444527909,4.19066631,34900.0,34899.0,4.0979969]
[1625444529711,2.86447599,34900.0,34899.0,4.0979969]
[1625444529811,2.64633599,34900.0,34899.0,4.10784402]
[1625444531515,2.64633599,34900.0,34899.0,4.0979969]
[1625444531720,2.64633599,34900.0,34899.0,4.1078415]
[1625444533721,2.64633599,34900.0,34899.0,4.1128415]
[1625444533973,2.64633599,34900.0,34899.0,4.1078415]
[1625444534773,2.64633599,34900.0,34899.0,4.0979969]
[1625444535073,2.64633599,34900.0,34899.0,4.10784101]
[1625444538328,1.48862661,34900.0,34899.0,4.10784101]
[1625444540486,1.48862661,34900.0,34899.0,4.11633009]
[1625444540587,1.48862661,34900.0,34899.0,4.54898309]
[1625444540889,0.50639998,34900.0,34899.0,6.07390358]
[1625444541389,0.59090467,34900.0,34899.0,6.07390358]
[1625444541892,0.08450469,34900.0,34899.0,6.07390358]
[1625444542239,0.50727416,34900.0,34899.0,6.07390358]
[1625444542542,0.25381766,34900.0,34899.0,6.07390358]
[1625444542841,1.766e-05,34900.0,34899.0,10.69920358]
[1625444543294,7.06e-05,34901.0,34899.0,10.69920358]
[1625444543395,7.06e-05,34901.0,34900.0,0.00983389]
[1625444543499,7.06e-05,34901.0,34900.0,0.06883389]
[1625444543647,7.06e-05,34901.0,34900.0,1.48250959]
[1625444543748,7.06e-05,34901.0,34900.0,5.6422716]
[1625444543947,7.06e-05,34901.0,34900.0,5.6737716]
[1625444544048,1.01608149,34905.0,34900.0,5.6737716]
[1625444544148,1.01608149,34905.0,34901.0,0.00983274]
[1625444544248,1.01608149,34905.0,34901.0,0.06883274]
[1625444544352,1.01608467,34906.0,34904.0,3.55583638]
[1625444544449,1.01608467,34906.0,34904.0,3.67383638]
[1625444544549,1.01608467,34906.0,34905.0,0.00983243]
[1625444544652,1.01608467,34906.0,34905.0,0.12783243]
[1625444544750,1.01608467,34906.0,34905.0,3.68865826]
[1625444545251,1.01608467,34906.0,34905.0,4.16980914]
[1625444545349,1.01608467,34906.0,34905.0,4.41301914]
[1625444545550,1.01568983,34908.0,34905.0,4.84379614]
[1625444545852,1.01568983,34908.0,34907.0,3.55194071]
[1625444545954,1.01568983,34908.0,34907.0,3.61094071]
[1625444546155,1.01568983,34908.0,34907.0,3.61597029]
[1625444546353,1.01568983,34908.0,34907.0,3.62579169]
[1625444546452,1.01568983,34908.0,34907.0,3.65729169]
[1625444546554,1.01568983,34908.0,34907.0,3.64747029]
[1625444547253,1.01568983,34908.0,34907.0,3.88804573]
[1625444550409,1.01482589,34909.0,34907.0,3.88804573]
[1625444550708,1.01482589,34909.0,34908.0,0.00502814]
[1625444550808,1.01482589,34909.0,34908.0,0.06402814]
[1625444551009,1.01482589,34909.0,34908.0,2.26195437]
[1625444552109,1.69123763,34909.0,34908.0,2.93558538]
[1625444552359,1.69123763,34909.0,34908.0,2.96708538]
[1625444552610,1.69123763,34909.0,34908.0,1.78358664]
[1625444553062,1.69123763,34909.0,34908.0,2.96422729]
[1625444553413,1.69123763,34909.0,34908.0,1.78358664]
[1625444553512,1.69123763,34909.0,34908.0,1.72458664]
[1625444553817,1.75023763,34909.0,34908.0,1.72458664]
[1625444554313,1.80923763,34909.0,34908.0,1.72458664]
[1625444554415,4.34527767,34909.0,34908.0,0.03652814]
[1625444555818,4.28627767,34909.0,34908.0,0.03652814]
[1625444555919,4.42579767,34909.0,34908.0,0.03652814]
[1625444556269,4.48479767,34909.0,34908.0,0.03652814]
[1625444556370,4.42579767,34909.0,34908.0,0.03652814]
[1625444556873,3.07325425,34909.0,34908.0,0.71027268]
[1625444557173,2.87473425,34909.0,34908.0,0.76927268]
[1625444557574,2.87473425,34909.0,34908.0,1.77924348]
[1625444557575,1.69123763,34909.0,34908.0,1.77924348]
[1625444558025,1.69123763,34909.0,34908.0,2.95700244]
[1625444558527,1.69123763,34909.0,34908.0,1.77924348]
[1625444559028,0.67641174,34909.0,34908.0,2.95414222]
[1625444559429,0.67641174,34909.0,34908.0,2.89514222]
[1625444559529,0.97285174,34909.0,34908.0,2.89514222]
[1625444559629,1.03185174,34909.0,34908.0,2.89514222]
[1625444559729,0.97285174,34909.0,34908.0,2.89514222]
[1625444559831,0.97285174,34909.0,34908.0,2.95414222]
[1625444559982,3.16971442,34909.0,34908.0,0.09552814]
[1625444560484,3.16971442,34909.0,34908.0,0.76746389]
[1625444560684,3.16971442,34909.0,34908.0,0.70846389]
[1625444560886,3.22871442,34909.0,34908.0,0.70846389]
[1625444561137,3.22871442,34909.0,34908.0,0.03652814]
[1625444561838,4.58086481,34909.0,34908.0,0.03652814]
[1625444562138,4.52186481,34909.0,34908.0,0.03652814]
[1625444563644,4.52186481,34909.0,34908.0,0.09552814]
[1625444563845,4.58086481,34909.0,34908.0,0.09552814]
[1625444563948,4.52186481,34909.0,34908.0,0.09552814]
[1625444564045,4.58086481,34909.0,34908.0,0.09552814]
[1625444566149,4.58086481,34909.0,34908.0,0.03652814]
[1625444569414,4.82144025,34909.0,34908.0,0.03652814]
[1625444570316,4.76244025,34909.0,34908.0,0.03652814]
[1625444570865,4.76244025,34909.0,34908.0,0.09552814]
[1625444571768,4.76244025,34909.0,34908.0,0.40437814]
[1625444571968,4.76244025,34909.0,34908.0,1.07805079]
[1625444574276,4.76244025,34909.0,34908.0,0.40437814]
[1625444574373,4.76244025,34909.0,34908.0,0.09552814]
[1625444575596,4.52186481,34909.0,34908.0,0.09552814]
[1625444575782,4.52186481,34909.0,34908.0,0.76933919]
[1625444576293,3.16971442,34909.0,34908.0,1.77970983]
[1625444576829,3.16971442,34909.0,34908.0,2.95956909]
[1625444578483,3.16971442,34909.0,34908.0,1.77970983]
[1625444579235,3.16971442,34909.0,34908.0,2.08990983]
[1625444579337,2.87327442,34909.0,34908.0,2.08990983]
[1625444579536,2.87327442,34909.0,34908.0,3.27400723]
[1625444579738,2.87327442,34909.0,34908.0,3.28383575]
[1625444580089,0.67438521,34910.0,34908.0,4.63736638]
[1625444580188,0.67438521,34910.0,34908.0,4.62753786]
[1625444580288,0.73338521,34910.0,34908.0,4.62753786]
[1625444580388,0.73338521,34910.0,34909.0,0.00506363]
[1625444580488,0.73338521,34910.0,34909.0,0.06406363]
[1625444580689,0.73338521,34910.0,34909.0,4.29384634]
[1625444580939,0.73338521,34910.0,34909.0,4.32534634]
[1625444581140,1.74445274,34910.0,34909.0,4.32534634]
[1625444583297,0.73338521,34910.0,34909.0,4.32534634]
[1625444584300,1.74744046,34910.0,34909.0,4.32534634]
[1625444585302,1.74744046,34910.0,34909.0,4.32028271]
[1625444585603,1.74744046,34910.0,34909.0,4.32532664]
[1625444590224,2.25486341,34910.0,34909.0,4.83294651]
[1625444594881,1.24080816,34910.0,34909.0,4.83294651]
[1625444595232,2.2507722,34910.0,34909.0,4.83294651]
[1625444597286,2.2507722,34910.0,34909.0,4.84279062]
[1625444598489,2.2507722,34910.0,34909.0,4.83294651]
[1625444599237,2.2507722,34910.0,34909.0,4.84279161]
[1625444600100,2.1917722,34910.0,34909.0,4.84279161]
[1625444600292,2.1917722,34910.0,34909.0,5.27253361]
[1625444600695,2.1917722,34910.0,34909.0,5.2810203]
[1625444600993,2.1917722,34910.0,34909.0,5.27253361]
[1625444601093,1.17587752,34912.0,34909.0,6.79596356]
[1625444601192,1.17587752,34912.0,34909.0,6.80445032]
[1625444601293,1.17587752,34912.0,34910.0,0.00984329]
[1625444601393,0.67190602,34912.0,34911.0,4.73958138]
[1625444601493,0.67190602,34912.0,34911.0,4.79858138]
[1625444601593,0.67190602,34912.0,34911.0,5.70862726]
[1625444601695,0.67190602,34912.0,34911.0,5.71847064]
[1625444601893,1.17586085,34912.0,34911.0,5.7235312]
[1625444602345,0.50395483,34912.0,34911.0,5.7235312]
[1625444602845,0.50395483,34912.0,34911.0,7.24676771]
[1625444603149,0.50395483,34912.0,34911.0,7.27826771]
[1625444603299,0.50395483,34912.0,34911.0,5.7550312]
[1625444603649,1.17493023,34913.0,34911.0,7.27823744]
[1625444603749,1.23393023,34913.0,34912.0,0.00984027]
[1625444603851,1.17493023,34913.0,34912.0,0.31543027]
[1625444604053,1.17493023,34913.0,34912.0,0.74160427]
[1625444604152,1.17493023,34913.0,34912.0,5.48479483]
[1625444604305,1.17493023,34913.0,34912.0,5.51629483]
[1625444604605,0.50354856,34913.0,34912.0,5.51629483]
[1625444607916,1.17187628,34914.0,34912.0,5.51629483]
[1625444608216,1.17187628,34914.0,34912.0,5.50645456]
[1625444608316,1.17187628,34914.0,34913.0,4.74146401]
[1625444608518,1.17187628,34914.0,34913.0,4.80046401]
[1625444609422,0.50149455,34914.0,34913.0,4.80046401]
[1625444609522,0.50149455,34914.0,34913.0,4.83196401]
[1625444609621,0.50149455,34914.0,34913.0,5.07253945]
[1625444614786,0.50088391,34915.0,34913.0,5.07253945]
[1625444615087,0.50088391,34915.0,34914.0,0.0050784]
[1625444615185,0.50088391,34915.0,34914.0,0.0640784]
[1625444615288,0.50088391,34915.0,34914.0,4.79902296]
[1625444615638,1.16893135,34916.0,34914.0,5.0395984]
[1625444615889,1.16893135,34916.0,34915.0,0.00507838]
[1625444615988,1.16893135,34916.0,34915.0,4.73955526]
[1625444616088,1.16893135,34916.0,34915.0,4.79855526]
[1625444616390,0.66778958,34916.0,34915.0,4.79855526]
[1625444616491,0.66813112,34917.0,34915.0,4.79855526]
[1625444616892,0.66813112,34917.0,34915.0,4.83005526]
[1625444616992,0.66813112,34917.0,34916.0,3.38681624]
[1625444617092,0.66813112,34917.0,34916.0,3.44581624]
[1625444617193,0.66813112,34917.0,34916.0,3.38681624]
[1625444617393,5.75913112,34917.0,34916.0,3.38681624]
[1625444617594,7.26177376,34917.0,34916.0,3.41831624]
[1625444617693,7.26177376,34917.0,34916.0,3.65889168]
[1625444618395,7.26177376,34917.0,34916.0,2.47527412]